Cogmind - Beta 16 @@@ ROGUE MODE // 2025.10.27 @ 12:53:24 Player: AshCrow Result: Destroyed by Autobeam Turret with Autobeam Performance ------------- Evolutions (0) 0 Regions Visited (3) 600 Robots Destroyed (18) 90 Value Destroyed (264) 264 Prototype IDs (2) 40 Alien Tech Used (0) 0 Bonus (0) 0 TOTAL SCORE: 994 Bonus ------- None Cogmind --------- Core Integrity 0/250 Matter 300/300 Energy 98/100 System Corruption 0% Temperature Cool (24) Movement Core (50) Location -10/Subcaves Parts ------- > --- POWER (1) -------- (None) > --- PROPULSION (2) --- (None) > --- UTILITY (2) ------ (None) > --- WEAPON (2) ------- (None) > --- INVENTORY (5) ---- Light Ion Engine Light Ion Engine Light Armor Plating Peak State ------------ > --- POWER ------------ Subdweller Power Source > --- PROPULSION ------- Wheel Subdweller Monowheel > --- UTILITY ---------- Cobbler Unit > --- WEAPON ----------- Light Assault Rifle Light Assault Rifle > --- INVENTORY -------- Light Ion Engine Light Ion Engine Light Armor Plating [Rating: 11] Favorites ----------- Power Light Nuclear Core Engine Light Ion Engine Power Core Light Nuclear Core Propulsion Light Treads Treads Light Treads Wheel Subdweller Monowheel Utility Small Storage Unit Device Cobbler Unit Storage Small Storage Unit Protection Light Armor Plating Weapon Small Laser Energy Gun Small Laser Ballistic Gun Assault Rifle Build | -11 -10 -10 -10 ------- Run | Yrd Mat Min Sub Slots Evolved . | . . . . Power . | . . . . Propulsion . | . . . . Utility . | . . . . Weapon . | . . . . Parts Attached 17 | 7 3 1 6 Power 3 | 1 1 . 1 Engine 2 | 1 . . 1 Core 1 | . 1 . . Reactor . | . . . . Propulsion 4 | 2 . . 2 Treads 2 | 2 . . . Leg . | . . . . Wheel 2 | . . . 2 Hover . | . . . . Flight . | . . . . Utility 4 | 1 1 1 1 Device 1 | . . . 1 Storage 2 | 1 . 1 . Processor . | . . . . Hackware . | . . . . Protection 1 | . 1 . . Artifact . | . . . . Weapon 6 | 3 1 . 2 Energy Gun 2 | 2 . . . Energy Cannon . | . . . . Ballistic Gun 4 | 1 1 . 2 Ballistic Cannon . | . . . . Launcher . | . . . . Special Weapon . | . . . . Impact Weapon . | . . . . Slashing Weapon . | . . . . Piercing Weapon . | . . . . Special Melee Weapon . | . . . . Unidentified Prototypes . | . . . . Parts Lost 3 | . . 2 1 Power 1 | . . 1 . Propulsion 2 | . . 1 1 Utility . | . . . . Weapon . | . . . . Highest Loss Streak 2 | . . 2 1 To Critical Strikes . | . . . . Average Backups 4 | 1 4 7 4 Power 2 | . 2 2 2 Propulsion . | . . . . Utility . | . . 1 1 Weapon 1 | . 1 3 1 Tool/Special . | . . . . Unused Backups 5 | . . 2 3 Power 3 | . . 1 2 Propulsion . | . . . . Utility 1 | . . . 1 Weapon 1 | . . 1 . Tool/Special . | . . . . Average Slot Usage (%) 79 | . 89 96 30 Engine 2 | . 3 . 3 Core 9 | . 10 13 . Treads 21 | . 28 26 . Wheel 1 | . . . 5 Device 1 | . . . 8 Storage 12 | . 14 18 . Protection 4 | . 4 8 . Energy Gun 10 | . 14 13 . Ballistic Gun 13 | . 14 13 13 Peak Build Rating 11 | 6 9 9 11 Average Rating 7 | 5 7 8 4 On Entrance 3 | . 6 9 . Avg Prop Armor Cover (%) . | . . . . Naked Turns 95 | . . 13 82 Heaviest Build 19 | 11 16 18 19 Greatest Support 40 | 40 40 40 30 Greatest Overweight (x) 6 | . . . 6 Average Overweight (x) . | . . . . Largest Inventory Capacity 8 | 8 8 8 5 Average Capacity 7 | 7 8 7 5 Most Carried 8 | 3 7 8 5 Average Carried 4 | 1 4 7 4 Final Capacity 8 | 8 8 5 5 Final Carried 7 | 3 7 5 3 Class Distribution -------------------- 95% | Mutant 4% | Scavenger-Mutant Dominant Class ---------------- Mutant | -10/Materials Mutant | -10/Mines Mutant | -10/Subcaves Resources | -11 -10 -10 -10 ----------- Run | Yrd Mat Min Sub Matter Collected 506 | 285 101 45 75 Remotely . | . . . . Salvage Created 505 | 129 215 111 50 Parts 37 | 5 15 12 5 Haulers Intercepted . | . . . . Recyclers Shooed 1 | . 1 . . Parts Field Recycled . | . . . . Retrieved Matter . | . . . . Parts Self-Destructed 4 | . . . 4 Prevented . | . . . . Parts Restored . | . . . . Kills | -11 -10 -10 -10 ------- Run | Yrd Mat Min Sub Combat Hostiles Destroyed 13 | . 9 3 1 Guns 13 | . 9 3 1 Classes Destroyed 6 | 2 2 1 1 Worker 2 | 2 . . . Builder 1 | . . 1 . Recycler 2 | 1 . 1 . Swarmer 9 | . 6 3 . Grunt 3 | . 3 . . Subdweller 1 | . . . 1 Best Kill Streak 5 | 2 3 5 1 Combat Bots Only 3 | . 3 3 1 Max Kills in Single Turn 2 | 2 2 1 1 Gunslinging 1 | . 1 . . Exploded . | . . . . Melee . | . . . . Uniques/NPCs Destroyed . | . . . . Combat | -11 -10 -10 -10 -------- Run | Yrd Mat Min Sub Hostile Shots Fired 113 | . 38 28 47 Missed 34 | . 9 4 21 Hits 79 | . 29 24 26 Projectile 79 | . 29 24 26 AOE 8 | . . 8 . Damage Taken 1027 | . 294 465 268 Core 257 | . 22 115 120 Absorbed by Shields . | . . . . Core Remaining (%) 100 | 100 . . . Volleys Fired 52 | 5 28 12 7 Largest 2 | 2 2 2 2 Hottest 60 | 60 60 60 40 Shots Fired 104 | 10 56 24 14 Gun 104 | 10 56 24 14 Cannon . | . . . . Launcher . | . . . . Special . | . . . . Kinetic 59 | 5 28 12 14 Thermal 45 | 5 28 12 . Explosive . | . . . . Electromagnetic . | . . . . Robot Hit Streak 11 | 4 8 4 11 Robot Miss Streak 5 | 1 5 2 1 Penetration Max . | . . . . Secondary Targets 4 | . 3 1 . Max Gunslinging Chain 1 | . 1 1 . Shots Hit Robots 62 | 7 28 14 13 Core Hits 29 | 4 14 7 4 Critical Kills . | . . . . Critical Parts Destroyed . | . . . . Critical Strikes . | . . . . Melee Attacks . | . . . . Impact . | . . . . Slashing . | . . . . Piercing . | . . . . Sneak Attacks . | . . . . Combat Hostiles . | . . . . Follow-up Attacks . | . . . . Damage Inflicted 752 | 92 366 192 102 Guns 731 | 89 348 192 102 Cannons . | . . . . Explosions . | . . . . Melee . | . . . . Ramming 21 | 3 18 . . Kinetic 397 | 47 155 93 102 Thermal 334 | 42 193 99 . Explosive . | . . . . Electromagnetic . | . . . . Impact . | . . . . Slashing . | . . . . Piercing . | . . . . Highest Corruption . | . . . . Average Corruption . | . . . . Corruption Purged . | . . . . Corruption Blocked . | . . . . Overload Shots . | . . . . Overflow Damage . | . . . . Projectiles . | . . . . Explosions . | . . . . Melee . | . . . . Knockbacks . | . . . . Impact . | . . . . Kinetic . | . . . . Secondary . | . . . . Self-Inflicted Damage . | . . . . Shots . | . . . . Rammed 6 | 2 4 . . Targets Rammed 6 | 2 4 . . Kicked . | . . . . Crushed . | . . . . Highest Temperature 135 | . 63 135 . Average Temperature 34 | . 24 57 . Received Heat Transfer 195 | . 105 . 90 Siege Activations . | . . . . Martial Activations . | . . . . Shielding Activations . | . . . . Robots Disrupted . | . . . . Combat Hostiles . | . . . . Robots Corrupted . | . . . . Combat Hostiles . | . . . . Parts Fried . | . . . . Impact Corruptions . | . . . . Robots Melted . | . . . . Combat Hostiles . | . . . . Parts Melted 1 | . . 1 . Heat Transferred 775 | 100 450 225 . Parts Sabotaged . | . . . . Parts Stolen . | . . . . Parts Stripped . | . . . . Power Chain Reactions . | . . . . Alert | -11 -10 -10 -10 ------- Run | Yrd Mat Min Sub Maximum Alert Level . | . . . . Low Security (%) 100 | 100 100 100 . Level 1 . | . . . . Level 2 . | . . . . Level 3 . | . . . . Level 4 . | . . . . Level 5 . | . . . . High Security . | . . . . Max Security . | . . . . Peak Influence 150 | 5 150 70 . Initial 10 | . . 10 . Average 37 | . 64 18 . Influence Increases 365 | 15 210 80 60 Destroy 0b10 Robot/C 240 | . 180 60 . Destroy 0b10 Robot/NC 25 | 15 . 10 . Destroy Leader 40 | . 30 10 . Lose Combat Pursuer 60 | . . . 60 Influence Decreases 325 | 15 182 108 20 Entered New Map 18 | . . 18 . Time Decay 287 | 15 182 80 10 Lost Part 20 | . . 10 10 Squads Dispatched . | . . . . Investigation . | . . . . Extermination . | . . . . Reinforcement . | . . . . Assault . | . . . . Garrison . | . . . . Intercept . | . . . . Searches Triggered . | . . . . Construction Impeded . | . . . . Haulers Reinforced . | . . . . Active Scanning Responses . | . . . . Cargo Convoy Interrupts . | . . . . Stealth | -11 -10 -10 -10 --------- Run | Yrd Mat Min Sub Distress Signals 1 | . 1 . . Communications Jammed . | . . . . Distress Signals . | . . . . Times Spotted 27 | . 10 5 12 Peak Tracking Total 7 | . 4 3 7 Tactical Retreats 2 | . . . 2 Traps | -11 -10 -10 -10 ------- Run | Yrd Mat Min Sub Traps Triggered . | . . . . Indirectly . | . . . . Trap Hack Attempts . | . . . . Triggered . | . . . . Disarmed . | . . . . Reprogrammed . | . . . . Reused . | . . . . Traps Extracted . | . . . . Installed . | . . . . Triggered . | . . . . Machines | -11 -10 -10 -10 ---------- Run | Yrd Mat Min Sub Machines Disabled . | . . . . Max in Single Turn . | . . . . Machines Repaired . | . . . . Machines Dismantled . | . . . . Machines Sabotaged . | . . . . Overloaded Fab Kills . | . . . . Hacking | -11 -10 -10 -10 --------- Run | Yrd Mat Min Sub Machines Accessed 2 | . 2 . . Terminals 2 | . 2 . . Fabricators . | . . . . Repair Stations . | . . . . Recycling Units . | . . . . Scanalyzers . | . . . . Garrison Access . | . . . . Total Hacks 2 | . 2 . . Successful 2 | . 2 . . Failed . | . . . . Catastrophic . | . . . . Database Lockouts . | . . . . Manual . | . . . . Terminals 2 | . 2 . . Fabricators . | . . . . Repair Stations . | . . . . Recycling Units . | . . . . Scanalyzers . | . . . . Garrison Access . | . . . . Terminal Hacks 2 | . 2 . . Prototype ID Bank 1 | . 1 . . Registered Components 1 | . 1 . . Fabricator Hacks . | . . . . Repair Station Hacks . | . . . . Recycling Unit Hacks . | . . . . Scanalyzer . | . . . . Garrison Access Hacks . | . . . . Unauthorized Hacks . | . . . . Terminals . | . . . . Fabricators . | . . . . Repair Stations . | . . . . Recycling Units . | . . . . Scanalyzers . | . . . . Garrison Access . | . . . . Data Cores Recovered . | . . . . Used . | . . . . Hacking Detections . | . . . . Full Trace Events . | . . . . Feedback Events . | . . . . Feedback Blocked . | . . . . Robot Schematics Acquired . | . . . . Robots Built . | . . . . Authchips . | . . . . Time . | . . . . Total Robot Build Rating . | . . . . Part Schematics Acquired . | . . . . Parts Built . | . . . . Authchips . | . . . . Time . | . . . . Total Part Build Rating . | . . . . Part Studies Acquired . | . . . . Parts Repaired . | . . . . Time . | . . . . Parts Recycled . | . . . . Recycled Matter . | . . . . Retrieved Matter . | . . . . Retrieved Components . | . . . . Parts Scanalyzed . | . . . . Part Schematics Acquired . | . . . . Parts Damaged . | . . . . Bothacking | -11 -10 -10 -10 ------------ Run | Yrd Mat Min Sub Used RIF Installer . | . . . . Robots Hacked . | . . . . Non-combat . | . . . . Combat . | . . . . Robot Hacks Applied . | . . . . Relay Couplers Released . | . . . . Fabnet Peak Effective % . | . . . . Robots Rewired . | . . . . Allies Hacked . | . . . . Hacks Repelled . | . . . . Allies | -11 -10 -10 -10 -------- Run | Yrd Mat Min Sub Total Allies . | . . . . Largest Group . | . . . . Highest-Rated Group . | . . . . Highest-Rated Ally . | . . . . Total Orders . | . . . . Ally Attacks . | . . . . Total Damage . | . . . . Kills . | . . . . Allies Corrupted . | . . . . Allies Melted . | . . . . Intel | -11 -10 -10 -10 ------- Run | Yrd Mat Min Sub Active Infowar (turns) . | . . . . Robot Analysis Total . | . . . . Derelict Logs Recovered 1 | . . 1 . Drone Launches . | . . . . Drone Recoveries . | . . . . Exploration | -11 -10 -10 -10 ------------- Run | Yrd Mat Min Sub Turns Passed 1187 | 208 476 299 204 Spaces Moved 743 | 112 233 170 228 Core 204 | 2 . 19 183 Treads 494 | 110 233 151 . Legs . | . . . . Wheels 45 | . . . 45 Hover . | . . . . Flight . | . . . . Fastest Speed 50 | 50 160 50 50 Average Speed 131 | 158 160 147 76 Slowest Speed 350 | 160 160 160 350 Overloaded Moves . | . . . . Propulsion Burnouts . | . . . . Robots Hopped . | . . . . Potential Cave-ins . | . . . . Cave-ins Triggered . | . . . . Exploration Rate (%) 27 | 6 45 42 15 Regions Visited 3 Branch Regions 2 Pre-discovered Areas . | . . . . Known Exits Taken . | . . . . Unknown Exits Taken 3 | 1 1 1 . Scrap Searched . | . . . . Spaces Dug . | . . . . Terrain Destroyed . | . . . . Melee . | . . . . Projectile . | . . . . AOE . | . . . . Terrain Rammed . | . . . . Walls Destroyed . | . . . . Machines Disabled . | . . . . Actions | -11 -10 -10 -10 --------- Run | Yrd Mat Min Sub Total 846 | 128 276 197 245 Wait 19 | . 7 8 4 Move 741 | 112 232 169 228 Hop . | . . . . Pick Up 9 | 3 2 4 . Fast Attach 11 | 6 1 . 4 Attach 2 | . . . 2 Detach . | . . . . Swap 4 | 1 2 1 . Drop 3 | . . 3 . Fire 52 | 5 28 12 7 Melee . | . . . . Ram . | . . . . Kick . | . . . . Crush 5 | 1 4 . . Escape Stasis . | . . . . Rewire . | . . . . Trap . | . . . . Miscellaneous . | . . . . Route ------- -11/Scrapyard -10/Materials (discovered 3 exits: [*Mat] / [*Min] / [*Sub]) -10/Mines -10/Subcaves (discovered 1 exit: *Rec) History --------- Turn | Location | Event 13 | -11/Scrapyard | Discovered new exit (range 16) 209 | -11/Scrapyard | Entered Materials 305 | -10/Materials | Build established: Mutant 471 | -10/Materials | Discovered new exit (range 8) 578 | -10/Materials | Discovered new exit (range 8) 665 | -10/Materials | Discovered new exit (range 10) 685 | -10/Materials | Entered Mines 692 | -10/Mines | Met a Derelict bent on vengeance 921 | -10/Mines | Assembled infested the area 971 | -10/Mines | Released all parts (5) 983 | -10/Mines | Discovered new exit (range 3) 984 | -10/Mines | Entered Subcaves 985 | -10/Subcaves | Approached by a straggling Scientist 985 | -10/Subcaves | Identified exit to Recycling 985 | -10/Subcaves | Core integrity fell below 50% 1018 | -10/Subcaves | A swath of the cavern ceiling suddenly collapsed 1186 | -10/Subcaves | Released all parts (5) 1187 | -10/Subcaves | Core integrity fell below 20% 1188 | -10/Subcaves | Destroyed by Autobeam Turret with Autobeam Last Messages --------------- Acquired 10 matter. Subatomizers dissect the Wheel. XG-HFU(R) destroyed. Subatomizers dissect the Wheel. 17-QVI(R) destroyed. Subatomizers dissect the Wheel. Acquired 34 matter. Acquired Sub. Power Source. Subatomizers dissect the Wheel. Acquired Sub. Monowheel. Acquired Wheel. Acquired 26 matter. Acquired 2 matter. Subatomizers dissect the Mak. Power Source. Wheel destroyed. Released Sub. Monowheel. Released Sub. Power Source. Released Lgt. Assault Rifle. Released Cobbler Unit. S-10 Pest destroyed. Map ----- +----------------------------------------------------+ | ??????????????????????????????# #### | | ??????????????????????????????# ###"""# % | | ??????????????????????????????# #"""# | | ??????????????????????????????# % #"#"""# ## ##? | | ??????????????????????????????#####"## ####???##?? | | ??????????????????????????????##""%"####?????????? | | ??????????????????????????????##"##"#????????????? | | ???????###?????????###?????###"#"#""#????????????? | | ???????# ???###### ##????"#?"""##"#????????????? | | ?????##? #### #####"## #"##"#????????????? | | ?????# #% %% # #"# ##"""#????????????? | | ??????????# * % ####"""%##????##?????? | | ??????????# # ## ##"#"""#"##### ##????? | | ??????????## ### %#### %&#" ###??? | | ??# ??????## #?## ##?# &!# % ##?? | | ?## ??### #??# #??# # ## ##? | | ##"" # # % #??# #?## ######## #? | | """ ! ### ####" ##??????## ###? | | " %% % ### "##???###### ## #??? | | "#### #?## #####???## ## #### | | ##### ????## #############?# % | | ????# ??????### ###" """#?# | | ????#?????????## !## "#?# ## | | ???????????????## [=[# % "#?###### ######?? | | ????????????????# * s t""##?????# ##??????? | | ????????????????# s @ >#????## ##???????? | | ???????????????# =s[ t""##???## ##???????? | | ????????????# # "#???## #???????? | | ???????????# #% "#??## ##???????? | | ??????????# #" """#??# ##???????? | | ??????????# "#########?##### #####???? | | ??????????### #?????"""####?## #???? | | ????????????## #???? """"# ### # ##???? | | ?????????????# "???? """"" ###????? | | ????????????? # ""???? """"" #?????? | | ???????????? ### """???# ## ## # ? | | ??????????? ??##"#?????# ?##### ### | | ????????????? ????##??????# ??????? ####???? | | ??????????????????????????#####???????# ##??????? | | ??????????????????????????????????????####???????? | | ?????????????????????????????????????????????????? | | ?????????????????????????????????????????????????? | | ?????????????????????????????????????????????????? | | ?????????????????????????????????????????????????? | | ?????????????????????????????????????????????????? | | ?????????????????????????????????????????????????? | | ?????????????????????????????????????????????????? | | ?????????????????????????????????????????????????? | | ?????????????????????????????????????????????????? | | ?????????????????????????????????????????????????? | +----------------------------------------------------+ Best States ------------- Heat Dissipation 25 Energy Generation 15 Energy Capacity 200 Matter Stores 300 Matter Capacity 300 Sight Range 16 Terrain Scan Density 10 Armor Coverage 150 Evasion (%) 50 Recoil Reduction 2 Item Schematics ----------------- None Robot Schematics ------------------ None Fabricated ------------ Nothing Repaired ---------- Nothing Studied --------- None Alien Tech Used ----------------- None Achievements -------------- None Challenges ------------ None Game ------ Seed BeamSkeletonScreen Manual? 0 Play Time 00:08:53 Cumulative 46.2 hours Start 2025.10.27 @ 12:46:11 End 2025.10.27 @ 12:53:24 Sessions 1 Manual Loads 0 Difficulty Rogue Special Mode None Game No. 86 Rogue 83 Adventurer 0 Explorer 3 Win Type - Total 1 Types 1/0/0/0/0/0/0/0/0/0 Lore% 40 Gallery% 32 Achievement% 22 Wizard Run 0 Options --------- Layout 1 ASCII 0 Keyboard 1 Movement Numpad Keybinds 0 Fullscreen 1 Font 24/Smallcaps Map View 50x35 Zoom Use 0% Tactical HUD 0 Map Filters NONE Filters NONE Steam 1 RUN: 59c6db65-ce90-4cc7-8de6-9972bd933a1e